Cogmind - Beta 12 @@@ ROGUE MODE // 2023.03.26 @ 03:35:08 Player: Rainynight Result: Destroyed by G-47 Trooper with Particle Gun Performance ------------- Evolutions (2) 1000 Regions Visited (7) 1400 Robots Destroyed (0) 0 Value Destroyed (0) 0 Prototype IDs (0) 0 Alien Tech Used (0) 0 Bonus (-8016) -8016 TOTAL SCORE: -5616 Bonus ------- Devolution -13500 Fragile Parts 500 No Salvage 500 Pure Core 1000 Scavenger 2000 Simple Hacker 620 Pacifist 564 Aligned with FarCom 300 Cogmind --------- Core Integrity 0/800 Matter 254/300 Energy 84/100 System Corruption 5% Temperature Cool (9) Movement Core (50) Location -8/Materials Parts ------- > --- POWER (1) -------- (None) > --- PROPULSION (5) --- (None) > --- UTILITY (8) ------ (None) > --- WEAPON (4) ------- (None) > --- INVENTORY (0) ---- (None) Peak State ------------ None Favorites ----------- Power None Propulsion None Utility None Weapon None Build | -11 -10 -10 -9 -9 -9 -8 -8 ------- Run | Jun Mat Min Mat Min Exi Min Mat Slots Evolved -2 | . . . -1 . . . -1 Power -1 | . . . . . . . -1 Propulsion . | . . . . . . . . Utility -1 | . . . -1 . . . . Weapon . | . . . . . . . . Parts Attached . | . . . . . . . . Power . | . . . . . . . . Engine . | . . . . . . . . Core . | . . . . . . . . Reactor . | . . . . . . . . Propulsion . | . . . . . . . . Treads . | . . . . . . . . Leg . | . . . . . . . . Wheel . | . . . . . . . . Hover . | . . . . . . . . Flight . | . . . . . . . . Utility . | . . . . . . . . Device . | . . . . . . . . Storage . | . . . . . . . . Processor . | . . . . . . . . Hackware . | . . . . . . . . Protection . | . . . . . . . . Artifact . | . . . . . . . . Weapon . | . . . . . . . . Energy Gun . | . . . . . . . . Energy Cannon . | . . . . . . . . Ballistic Gun . | . . . . . . . . Ballistic Cannon . | . . . . . . . . Launcher . | . . . . . . . . Special Weapon . | . . . . . . . . Impact Weapon . | . . . . . . . . Slashing Weapon . | . . . . . . . . Piercing Weapon . | . . . . . . . . Special Melee Weapon . | . . . . . . . . Unidentified Prototypes . | . . . . . . . . Parts Lost . | . . . . . . . . Power . | . . . . . . . . Propulsion . | . . . . . . . . Utility . | . . . . . . . . Weapon . | . . . . . . . . Highest Loss Streak . | . . . . . . . . To Critical Strikes . | . . . . . . . . Average Slot Usage (%) . | . . . . . . . . Naked Turns 683 | . 64 12 39 199 78 61 230 Heaviest Build . | . . . . . . . . Greatest Support 3 | 3 3 3 3 3 3 3 3 Greatest Overweight (x) . | . . . . . . . . Average Overweight (x) . | . . . . . . . . Largest Inventory Capacity . | . . . . . . . . Average Capacity . | . . . . . . . . Most Carried . | . . . . . . . . Average Carried . | . . . . . . . . Final Capacity . | . . . . . . . . Final Carried . | . . . . . . . . Class Distribution -------------------- 100% | Mutant Dominant Class ---------------- Mutant | -10/Materials Mutant | -10/Mines Mutant | -9/Materials Mutant | -9/Mines Mutant | -9/Exiles Mutant | -8/Mines Mutant | -8/Materials Resources | -11 -10 -10 -9 -9 -9 -8 -8 ----------- Run | Jun Mat Min Mat Min Exi Min Mat Matter Collected 23 | . . . . . . 23 . Remotely . | . . . . . . . . Salvage Created . | . . . . . . . . Parts . | . . . . . . . . Haulers Intercepted . | . . . . . . . . Recyclers Shooed . | . . . . . . . . Parts Field Recycled . | . . . . . . . . Retrieved Matter . | . . . . . . . . Parts Self-Destructed . | . . . . . . . . Prevented . | . . . . . . . . Kills | -11 -10 -10 -9 -9 -9 -8 -8 ------- Run | Jun Mat Min Mat Min Exi Min Mat Combat Hostiles Destroyed . | . . . . . . . . Classes Destroyed . | . . . . . . . . Best Kill Streak . | . . . . . . . . Combat Bots Only . | . . . . . . . . Max Kills in Single Turn . | . . . . . . . . Gunslinging . | . . . . . . . . Exploded . | . . . . . . . . Melee . | . . . . . . . . Uniques/NPCs Destroyed . | . . . . . . . . Combat | -11 -10 -10 -9 -9 -9 -8 -8 -------- Run | Jun Mat Min Mat Min Exi Min Mat Damage Taken 1265 | . 278 . 117 70 . . 800 Core 1265 | . 278 . 117 70 . . 800 Absorbed by Shields . | . . . . . . . . Core Remaining (%) 80 | 100 . 65 . . . 76 . Volleys Fired . | . . . . . . . . Largest . | . . . . . . . . Hottest . | . . . . . . . . Shots Fired . | . . . . . . . . Gun . | . . . . . . . . Cannon . | . . . . . . . . Launcher . | . . . . . . . . Special . | . . . . . . . . Kinetic . | . . . . . . . . Thermal . | . . . . . . . . Explosive . | . . . . . . . . Electromagnetic . | . . . . . . . . Robot Hit Streak . | . . . . . . . . Robot Miss Streak . | . . . . . . . . Penetration Max . | . . . . . . . . Secondary Targets . | . . . . . . . . Shots Hit Robots . | . . . . . . . . Core Hits 4 | . 2 . . . . . 2 Critical Kills . | . . . . . . . . Critical Parts Destroyed . | . . . . . . . . Critical Strikes . | . . . . . . . . Melee Attacks . | . . . . . . . . Impact . | . . . . . . . . Slashing . | . . . . . . . . Piercing . | . . . . . . . . Sneak Attacks . | . . . . . . . . Combat Hostiles . | . . . . . . . . Follow-up Attacks . | . . . . . . . . Damage Inflicted 107 | . 15 . . 6 . . 86 Guns . | . . . . . . . . Cannons . | . . . . . . . . Explosions . | . . . . . . . . Melee . | . . . . . . . . Ramming 107 | . 15 . . 6 . . 86 Kinetic . | . . . . . . . . Thermal . | . . . . . . . . Explosive . | . . . . . . . . Electromagnetic . | . . . . . . . . Impact . | . . . . . . . . Slashing . | . . . . . . . . Piercing . | . . . . . . . . Highest Corruption 5 | . 3 3 . . . . 5 Average Corruption 2 | . 2 3 . . . . 1 Corruption Purged . | . . . . . . . . Corruption Blocked . | . . . . . . . . Effects 3 | . . 1 . . . . 2 Message Errors 2 | . . 1 . . . . 1 Energy Discharges 1 | . . . . . . . 1 Overload Shots . | . . . . . . . . Overflow Damage . | . . . . . . . . Projectiles . | . . . . . . . . Explosions . | . . . . . . . . Melee . | . . . . . . . . Knockbacks . | . . . . . . . . Impact . | . . . . . . . . Kinetic . | . . . . . . . . Secondary . | . . . . . . . . Self-Inflicted Damage 49 | . 7 . . 3 . . 39 Shots . | . . . . . . . . Rammed 36 | . 4 . . 1 . . 31 Targets Rammed 36 | . 4 . . 1 . . 31 Kicked . | . . . . . . . . Crushed . | . . . . . . . . Highest Temperature 7 | . . . 7 . . . 7 Average Temperature 7 | . . . 7 . . . 7 Received Heat Transfer 342 | . 111 . 60 36 . . 135 Siege Activations . | . . . . . . . . Robots Corrupted . | . . . . . . . . Combat Hostiles . | . . . . . . . . Parts Fried . | . . . . . . . . Impact Corruptions . | . . . . . . . . Robots Melted . | . . . . . . . . Combat Hostiles . | . . . . . . . . Parts Melted . | . . . . . . . . Heat Transferred . | . . . . . . . . Parts Sabotaged . | . . . . . . . . Parts Stolen . | . . . . . . . . Parts Stripped . | . . . . . . . . Power Chain Reactions . | . . . . . . . . Missiles Intercepted . | . . . . . . . . Alert | -11 -10 -10 -9 -9 -9 -8 -8 ------- Run | Jun Mat Min Mat Min Exi Min Mat Peak Influence 195 | . 31 12 50 109 . . 195 Initial 19 | . . 12 4 19 . . . Average 42 | . 22 12 26 53 . . 56 Maximum Alert Level . | . . . . . . . . Low Security (%) 100 | 100 100 100 100 100 . 100 100 Level 1 . | . . . . . . . . Level 2 . | . . . . . . . . Level 3 . | . . . . . . . . Level 4 . | . . . . . . . . Level 5 . | . . . . . . . . High Security . | . . . . . . . . Max Security . | . . . . . . . . Squads Dispatched 6 | . . . 1 . . . 5 Investigation 4 | . . . 1 . . . 3 Extermination . | . . . . . . . . Reinforcement 2 | . . . . . . . 2 Assault . | . . . . . . . . Garrison . | . . . . . . . . Intercept . | . . . . . . . . Searches Triggered . | . . . . . . . . Construction Impeded . | . . . . . . . . Haulers Reinforced . | . . . . . . . . Active Scanning Responses . | . . . . . . . . Cargo Convoy Interrupts . | . . . . . . . . Stealth | -11 -10 -10 -9 -9 -9 -8 -8 --------- Run | Jun Mat Min Mat Min Exi Min Mat Distress Signals 1 | . 1 . . . . . . Communications Jammed . | . . . . . . . . Distress Signals . | . . . . . . . . Times Spotted 36 | . 10 . 3 5 . . 18 Peak Tracking Total 14 | . 10 . 3 3 . . 14 Tactical Retreats 4 | . . . . 3 . . 1 Traps | -11 -10 -10 -9 -9 -9 -8 -8 ------- Run | Jun Mat Min Mat Min Exi Min Mat Traps Triggered 11 | . 2 . 2 . . . 7 Indirectly . | . . . . . . . . Trap Hack Attempts . | . . . . . . . . Triggered . | . . . . . . . . Disarmed . | . . . . . . . . Reprogrammed . | . . . . . . . . Reused . | . . . . . . . . Traps Extracted . | . . . . . . . . Installed 4 | . . . . 4 . . . Triggered . | . . . . . . . . Machines | -11 -10 -10 -9 -9 -9 -8 -8 ---------- Run | Jun Mat Min Mat Min Exi Min Mat Machines Disabled . | . . . . . . . . Max in Single Turn . | . . . . . . . . Machines Repaired . | . . . . . . . . Machines Sabotaged . | . . . . . . . . Overloaded Fab Kills . | . . . . . . . . Hacking | -11 -10 -10 -9 -9 -9 -8 -8 --------- Run | Jun Mat Min Mat Min Exi Min Mat Machines Accessed 5 | . 1 . 1 1 . . 2 Terminals 4 | . 1 . 1 . . . 2 Fabricators . | . . . . . . . . Repair Stations . | . . . . . . . . Recycling Units . | . . . . . . . . Scanalyzers . | . . . . . . . . Garrison Access . | . . . . . . . . Total Hacks 7 | . 1 . 1 1 . . 4 Successful 5 | . 1 . 1 1 . . 2 Failed 2 | . . . . . . . 2 Catastrophic 2 | . . . . . . . 2 Database Lockouts . | . . . . . . . . Manual . | . . . . . . . . Terminals 6 | . 1 . 1 . . . 4 Fabricators . | . . . . . . . . Repair Stations . | . . . . . . . . Recycling Units . | . . . . . . . . Scanalyzers . | . . . . . . . . Garrison Access . | . . . . . . . . Terminal Hacks 5 | . 1 . 1 1 . . 2 Open Door 1 | . . . . 1 . . . Branch Access Points 3 | . 1 . 1 . . . 1 Assault Status 1 | . . . . . . . 1 Fabricator Hacks . | . . . . . . . . Repair Station Hacks . | . . . . . . . . Recycling Unit Hacks . | . . . . . . . . Scanalyzer . | . . . . . . . . Garrison Access Hacks . | . . . . . . . . Unauthorized Hacks . | . . . . . . . . Terminals . | . . . . . . . . Fabricators . | . . . . . . . . Repair Stations . | . . . . . . . . Recycling Units . | . . . . . . . . Scanalyzers . | . . . . . . . . Garrison Access . | . . . . . . . . Data Cores Recovered . | . . . . . . . . Used . | . . . . . . . . Hacking Detections 3 | . 1 . . . . . 2 Full Trace Events 1 | . . . . . . . 1 Feedback Events . | . . . . . . . . Feedback Blocked . | . . . . . . . . Robot Schematics Acquired . | . . . . . . . . Robots Built . | . . . . . . . . Authchips . | . . . . . . . . Time . | . . . . . . . . Total Robot Build Rating . | . . . . . . . . Part Schematics Acquired . | . . . . . . . . Parts Built . | . . . . . . . . Authchips . | . . . . . . . . Time . | . . . . . . . . Total Part Build Rating . | . . . . . . . . Parts Repaired . | . . . . . . . . Time . | . . . . . . . . Parts Recycled . | . . . . . . . . Recycled Matter . | . . . . . . . . Retrieved Matter . | . . . . . . . . Retrieved Components . | . . . . . . . . Parts Scanalyzed . | . . . . . . . . Part Schematics Acquired . | . . . . . . . . Parts Damaged . | . . . . . . . . Bothacking | -11 -10 -10 -9 -9 -9 -8 -8 ------------ Run | Jun Mat Min Mat Min Exi Min Mat Used RIF Installer . | . . . . . . . . Robots Hacked . | . . . . . . . . Non-combat . | . . . . . . . . Combat . | . . . . . . . . Robot Hacks Applied . | . . . . . . . . Relay Couplers Released . | . . . . . . . . Fabnet Peak Effective % . | . . . . . . . . Robots Rewired . | . . . . . . . . Allies Hacked . | . . . . . . . . Hacks Repelled . | . . . . . . . . Allies | -11 -10 -10 -9 -9 -9 -8 -8 -------- Run | Jun Mat Min Mat Min Exi Min Mat Total Allies . | . . . . . . . . Largest Group . | . . . . . . . . Highest-Rated Group . | . . . . . . . . Highest-Rated Ally . | . . . . . . . . Total Orders . | . . . . . . . . Ally Attacks . | . . . . . . . . Total Damage . | . . . . . . . . Kills . | . . . . . . . . Allies Corrupted . | . . . . . . . . Allies Melted . | . . . . . . . . Intel | -11 -10 -10 -9 -9 -9 -8 -8 ------- Run | Jun Mat Min Mat Min Exi Min Mat Robot Analysis Total . | . . . . . . . . Derelict Logs Recovered 1 | . . . . 1 . . . Drone Launches . | . . . . . . . . Drone Recoveries . | . . . . . . . . Exploration | -11 -10 -10 -9 -9 -9 -8 -8 ------------- Run | Jun Mat Min Mat Min Exi Min Mat Turns Passed 693 | 10 64 12 39 199 78 61 230 Spaces Moved 1257 | 20 119 24 78 388 155 121 352 Core 1257 | 20 119 24 78 388 155 121 352 Treads . | . . . . . . . . Legs . | . . . . . . . . Wheels . | . . . . . . . . Hover . | . . . . . . . . Flight . | . . . . . . . . Fastest Speed 50 | 50 50 50 50 50 50 50 50 Average Speed 50 | 50 50 50 50 50 50 50 50 Slowest Speed 50 | 50 50 50 50 50 50 50 50 Overloaded Moves . | . . . . . . . . Propulsion Burnouts . | . . . . . . . . Robots Hopped . | . . . . . . . . Cave-ins Triggered . | . . . . . . . . Exploration Rate (%) 34 | 4 28 10 16 86 55 38 38 Regions Visited 7 Branch Regions 4 Pre-discovered Areas . | . . . . . . . . Known Exits Taken 2 | . 1 . 1 . . . . Unknown Exits Taken 5 | 1 . 1 . 1 1 1 . Scrap Searched 1 | . . . . . . 1 . Spaces Dug . | . . . . . . . . Terrain Destroyed . | . . . . . . . . Melee . | . . . . . . . . Projectile . | . . . . . . . . AOE . | . . . . . . . . Terrain Rammed . | . . . . . . . . Walls Destroyed . | . . . . . . . . Machines Disabled . | . . . . . . . . Actions | -11 -10 -10 -9 -9 -9 -8 -8 --------- Run | Jun Mat Min Mat Min Exi Min Mat Total 1313 | 19 122 23 77 392 154 120 406 Wait 23 | . . . . . . . 23 Move 1250 | 19 118 23 77 387 154 120 352 Hop . | . . . . . . . . Pick Up . | . . . . . . . . Fast Attach . | . . . . . . . . Attach . | . . . . . . . . Detach . | . . . . . . . . Swap . | . . . . . . . . Drop . | . . . . . . . . Fire . | . . . . . . . . Melee . | . . . . . . . . Ram 36 | . 4 . . 1 . . 31 Kick . | . . . . . . . . Crush . | . . . . . . . . Escape Stasis . | . . . . . . . . Rewire . | . . . . . . . . Trap 4 | . . . . 4 . . . Miscellaneous . | . . . . . . . . Route ------- -11/Junkyard -10/Materials (discovered 2 exits: *Mat / *Min) -10/Mines -9/Materials (discovered 3 exits: *Min / *Sto x2) -9/Mines (discovered 3 exits: *Mat x2 / [*Exi]) -9/Exiles -8/Mines -8/Materials (discovered 1 exit: [*Fac]) History --------- Turn | Location | Event 2 | -11/Junkyard | Discovered new exit (range 16) 11 | -11/Junkyard | Entered Materials 25 | -10/Materials | Identified exit to Mines 46 | -10/Materials | Discovered new exit (range 6) 75 | -10/Materials | Entered Mines 81 | -10/Mines | Discovered new exit (range 9) 87 | -10/Mines | Entered Materials 87 | -9/Materials | Devolved, losing 1 slot: Utility x-1 93 | -9/Materials | Identified exit to Mines 93 | -9/Materials | Identified exit to Storage 126 | -9/Materials | Entered Mines 142 | -9/Mines | Received a Rocket Launcher from a helpful Derelict 143 | -9/Mines | Met a Derelict who couldn't figure out how to use a Trap Extractor 163 | -9/Mines | Discovered new exit (range 4) 174 | -9/Mines | Found a hidden stash of uninstalled traps 204 | -9/Mines | Discovered new exit (range 7) 246 | -9/Mines | Learned Materials garrison access intel 305 | -9/Mines | Build established: Mutant 323 | -9/Mines | Deemed a non-threat by the Exiles lab entrance 323 | -9/Mines | Discovered new exit (range 5) 325 | -9/Mines | Entered Exiles 338 | -9/Exiles | Met 8R-AWN 346 | -9/Exiles | Met EX-HEX 360 | -9/Exiles | Met EX-BIN 367 | -9/Exiles | Aligned with FarCom system 367 | -9/Exiles | Given EX-Vault access code 381 | -9/Exiles | Met EX-DEC 397 | -9/Exiles | Discovered new exit (range 14) 403 | -9/Exiles | Entered Mines 459 | -8/Mines | Discovered new exit (range 10) 464 | -8/Mines | Entered Materials 464 | -8/Materials | Devolved, losing 1 slot: Power x-1 465 | -8/Materials | Loaded intel: 1 garrison access location 658 | -8/Materials | Core integrity fell below 50% 680 | -8/Materials | Core integrity fell below 20% 694 | -8/Materials | Discovered new exit (range 9) 694 | -8/Materials | Destroyed by G-47 Trooper with Particle Gun Last Messages --------------- 00672_ Destabilizing: System corrupted (+2). 00673_ 2COHQ FAZXWKW M2/A8Q45EQG=ZH/UP= 00673_ Slammed into H-55 Commando. 00675_ Penetrated by Slug. 00675_ Triggered Blade Trap. 00675_ Massive razor-sharp blades shoot up from within the floor. 00676_ Triggered Alarm Trap. 00676_ An alarm sounds. 00676_ ALERT: Alarm triggered, dispatching investigation squad. 00677_ Triggered Blade Trap. 00677_ Massive razor-sharp blades shoot up from within the floor. 00679_ Penetrated by Slug. 00683_ Slammed into H-55 Commando. 00684_ K-01 Serf collects debris. 00685_ Slammed into H-55 Commando. 00685_ Slug penetrates Wall. 00685_ K-01 Serf cleans the Electrolysis Chamber. 00690_ System corrupted: Energy discharge (-26). 00690_ K-01 Serf collects debris. 00694_ EXIT=FOUND Map ----- +----------------------------------------------------+ | ?????######## # # + #??###??# #?? !# | | ???????? # # "" # # "" !#???????# #? ? | | ???????? # #? """ # # "Y #???????# #? """ # | | ????????? # #?? S" # #?"" #???????# # """ # | | ????????? # #??? # #? #???????# # """ # | | ???????###+## #???#### #??#####???????# + """ # | | ######## #??????# ######?????????# # """ # | | #######?????# #?????????# + # | | ######## # ! #?????######+####??######+########? | | ???????# # T ????????#] #??# #?? | | ???????# # ????????# ! """#??# """ """ #?? | | ???????# #""" ?????????#! """#??# """ """ #?? | | ???????# #""" ?????????# """#??# """ """ #?? | | ???????# #"""??????????# / #??#* ??? | | ???????# # ??????????#########??#############??? | | ???????# ##+################T################????? | | ???????# ggh g ^ ]#????? | | ???????###### #######+############### ^ #????? | | ????????????# #???? #?????????????# #????? | | ????????????# #?? #?????????????# """ #????? | | ????????????# #?# #######???????# """ !#????? | | ????????????# #?#""" # ######### """ #????? | | ???????????? ?#""" # ## #????? | | ???????????? H ?#""" # k < ## #????? | | ????????????/ ?# # ??# """ #????? | | ????????????###???##### @k #???????# """ #????? | | ??????????????????#######/#######???# """ #????? | | ??????????????????# ! h #####h #????? | | ??????????????????#"" g c /w ! #????? | | ??????????????????#"Y """g""" #############????? | | ??????????????????#"" """ """ #????????????????? | | ??????????????????# """g""" #????????????????? | | ??????????????????# [ c c #????????????????? | | ??????????????????###############????????????????? | | | | | | | | | | | | | | | | | | | | | | | | | | | | | | | | | +----------------------------------------------------+ Best States ------------- Heat Dissipation 20 Energy Generation 5 Energy Capacity 100 Matter Stores 254 Matter Capacity 300 Sight Range 16 Terrain Scan Density 10 Evasion (%) 50 Item Schematics ----------------- None Robot Schematics ------------------ None Fabricated ------------ Nothing Alien Tech Used ----------------- None Achievements -------------- None Challenges ------------ Devolution Fragile Parts No Salvage Pure Core Scavenger Simple Hacker Trapped Game ------ Seed LaserFrostDeconstructor Manual? 0 Play Time 00:08:46 Cumulative 280.0 hours Start 2023.03.26 @ 03:28:40 End 2023.03.26 @ 03:35:08 Sessions 1 Manual Loads 0 Difficulty Rogue Special Mode None Game No. 259 Rogue 242 Adventurer 1 Explorer 16 Win Type - Total 16 Types 13/1/0/2/0/0/0/0/0 Lore% 74 Gallery% 80 Achievement% 72 Wizard Run 0 Options --------- ASCII 1 Keyboard 1 Movement Numpad Keybinds 1 Fullscreen 1 Font 18/X11 Map View 76x50 Tactical HUD 1 Map Filters NONE Filters NONE Steam 1 RUN: 3183b5e7-610a-4fe0-82c0-e559dddeffb3